bitfinex-derivatives/quotes_ETHF0:USTF0_20260316
["timestamp","ask_amount","ask_price","bid_price","bid_amount"]
[1773678912787,18.395,2282.5,2281.3,6.83846572]
[1773678913085,6.52715201,2282.7,2281.5,6.83846572]
[1773678913287,18.392,2283.3,2281.7,6.83846572]
[1773678913477,6.52715201,2283.1,2281.7,6.83846572]
[1773678913680,6.52715201,2282.9,2281.7,6.83846572]
[1773678913987,6.52715201,2282.7,2281.7,6.83846572]
[1773678914486,6.5314842,2282.9,2281.7,6.83846572]
[1773678918086,6.52715201,2283.5,2282.0,6.83846572]
[1773678918389,6.52715201,2283.5,2282.2,6.83846572]
[1773678919187,6.53272254,2283.5,2282.2,6.8418073]
[1773678920192,6.53272254,2283.5,2282.4,6.83846572]
[1773678921292,6.52715201,2283.3,2282.4,6.83846572]
[1773678922291,6.63897201,2283.3,2282.4,6.83846572]
[1773678922986,6.63897201,2283.3,2282.2,6.82862402]
[1773678923182,6.58258724,2283.1,2282.2,6.71901402]
[1773678923893,6.70464724,2283.1,2282.2,6.71901402]
[1773678924293,6.70464724,2283.1,2282.2,6.72211835]
[1773678931493,6.70218777,2283.5,2282.2,6.94118835]
[1773678931998,6.58258724,2284.3,2283.3,6.82528244]
[1773678932203,6.58258724,2284.5,2283.5,6.82528244]
[1773678932802,6.69331724,2284.5,2283.5,6.82528244]
[1773678933004,6.69745595,2284.5,2283.5,6.82528244]
[1773678933498,6.58258724,2284.3,2282.7,6.82528244]
[1773678933705,6.58258724,2284.3,2283.3,6.82528244]
[1773678934099,6.70702724,2284.3,2283.3,6.82528244]
[1773678934596,6.70702724,2284.3,2282.6,0.21903]
[1773678934597,6.58258724,2284.1,2283.1,6.82528244]
[1773678935101,6.71065724,2284.1,2283.1,6.82528244]
[1773678935405,0.12807,2284.1,2283.1,6.82528244]
[1773678935999,6.69502724,2284.3,2283.1,6.82528244]
[1773678936192,6.58258724,2284.3,2283.1,7.04426244]
[1773678936398,6.58672595,2284.5,2283.1,7.04426244]
[1773678939103,0.00413871,2284.5,2283.3,7.04425244]
[1773678939303,0.00413871,2284.5,2283.5,6.82528244]
[1773678939507,6.85932972,2285.4,2283.9,6.82528244]
[1773678939997,6.85932972,2285.4,2284.1,6.82528244]
[1773678940203,6.85932972,2285.4,2284.3,6.82528244]
[1773678940397,6.86488698,2285.4,2284.3,6.83062752]
[1773678942202,6.97556698,2285.4,2284.3,6.83062752]
[1773678943203,6.97547698,2285.4,2284.3,6.83062752]
[1773678946000,7.19424698,2285.4,2284.3,6.83062752]
[1773678946606,7.19424698,2285.4,2284.3,0.00534508]
[1773678946607,6.58258724,2284.9,2284.3,0.00534508]
[1773678946808,6.58258724,2284.9,2284.1,6.82528244]
[1773678947204,6.71566724,2284.9,2284.1,6.82528244]
[1773678947810,6.71566724,2284.9,2284.1,6.82857892]
[1773678948612,0.13308,2284.9,2284.1,6.82857892]
[1773678948809,0.11345,2285.1,2284.1,6.82857892]
[1773678949713,6.58258724,2285.3,2284.3,6.82528244]
[1773678950015,6.69333724,2285.7,2284.8,6.82528244]
[1773678950210,6.58258724,2285.7,2284.8,6.82528244]
[1773678950416,6.69219724,2285.7,2284.8,6.82528244]
[1773678950617,6.58258724,2285.7,2284.8,6.82528244]
[1773678950818,6.69225724,2285.7,2284.8,6.82528244]
[1773678951122,6.69644048,2285.7,2284.8,6.82528244]
[1773678951713,6.69799048,2285.7,2284.8,6.82528244]
[1773678951913,6.69954048,2285.7,2284.8,6.82528244]
[1773678952114,6.58694048,2285.7,2284.8,6.82528244]
[1773678952315,6.1383589,2286.1,2284.8,6.82528244]
[1773678953518,6.14314228,2286.1,2285.0,6.3010258]
[1773678954124,0.00478338,2286.1,2285.2,6.3010258]
[1773678954524,6.32250232,2286.1,2285.2,6.3010258]
[1773678954725,6.54121232,2286.1,2284.8,6.3612989]
[1773678955123,6.65205232,2286.1,2284.8,6.3612989]
[1773678955421,6.65205232,2286.1,2284.9,6.3612989]
[1773678955922,6.54121232,2286.1,2284.9,6.3612989]
[1773678956126,6.65322232,2286.1,2284.9,6.3612989]
[1773678957425,6.44576894,2285.6,2284.4,6.3612989]
[1773678957734,6.44619894,2285.4,2284.4,6.3612989]
[1773678958621,6.31771894,2285.2,2284.4,6.2476789]
[1773678958827,6.31771894,2285.2,2284.2,6.3612989]
[1773678959127,6.45163894,2285.2,2284.2,6.3612989]
[1773678959719,6.31771894,2285.2,2284.2,6.3612989]
[1773678959929,6.43683894,2285.2,2284.2,6.3612989]
[1773678960129,6.43683894,2285.2,2284.3,6.3612989]
[1773678962827,0.11159,2285.2,2284.3,6.3612989]
[1773678963027,6.31771894,2285.4,2284.3,6.3612989]
[1773678963428,6.31771894,2285.8,2284.5,6.3612989]
[1773678963930,6.42884894,2285.8,2284.5,6.3612989]
[1773678964431,6.31771894,2285.8,2284.5,6.3612989]
[1773678965332,6.42836894,2285.8,2284.5,6.3612989]
[1773678965530,6.31771894,2285.8,2284.5,6.3612989]
[1773678965728,6.31771894,2285.6,2284.2,6.3612989]
[1773678966032,8.74864,2286.0,2284.2,6.3612989]
[1773678966033,6.43060894,2285.2,2284.2,6.3612989]
[1773678966832,6.44298894,2285.0,2284.2,6.3612989]
[1773678969239,6.42783894,2285.5,2284.2,6.3612989]
[1773678969742,6.42783894,2285.5,2284.4,6.3612989]
[1773678970037,6.42783894,2285.5,2284.5,6.3612989]
[1773678970233,6.42781894,2285.5,2284.5,6.3612989]
[1773678970438,6.43086894,2285.3,2284.2,6.3612989]
[1773678971039,6.31771894,2285.3,2284.2,6.3612989]
[1773678971640,6.31771894,2285.6,2284.4,6.3612989]
[1773678972643,6.31771894,2285.6,2284.6,6.3612989]
[1773678975146,6.31771894,2285.8,2284.8,6.3612989]
[1773678975944,6.31771894,2285.8,2284.9,7.066]
[1773678976244,6.31771894,2285.8,2285.0,6.3612989]
[1773678977248,6.42875894,2285.8,2285.0,6.3612989]
[1773678977444,6.31771894,2285.8,2285.0,6.3612989]
[1773678977748,6.42776894,2285.8,2285.0,6.3612989]
[1773678977946,6.42948894,2285.8,2285.0,6.3612989]
[1773678980350,6.31771894,2285.8,2285.0,6.3612989]
[1773678980551,6.42988894,2285.8,2285.0,6.3612989]
[1773678984859,6.35114381,2285.6,2284.5,6.50055967]
[1773678985251,6.35114381,2285.2,2284.5,6.38778967]
[1773678985448,6.35114381,2285.2,2284.2,6.50055967]
[1773678985648,5.1153509,2285.1,2284.2,6.50055967]
[1773678985852,6.46987381,2285.0,2284.2,6.50055967]
[1773678988564,6.35114381,2285.0,2283.6,13.33124687]
[1773678988861,6.35114381,2284.6,2283.6,6.50055967]
[1773678989059,6.35114381,2284.4,2283.6,6.50055967]
[1773678989263,6.46620381,2284.4,2283.6,6.50055967]
[1773678989656,6.4715604,2284.4,2283.6,6.50587494]
[1773678992955,6.4672404,2284.4,2283.6,6.50587494]
[1773678994560,6.3565004,2284.4,2283.6,6.50587494]
[1773678994755,6.4700304,2284.4,2283.6,6.50587494]
[1773678994963,6.4667204,2284.4,2283.6,6.50587494]
[1773678995360,6.3565004,2284.4,2283.6,6.50587494]
[1773678995561,6.4675304,2284.4,2283.6,6.50587494]
[1773678996161,6.3565004,2284.4,2283.6,6.50587494]
[1773678996467,6.4668004,2284.4,2283.6,6.50587494]
[1773678996961,6.3565004,2284.4,2283.6,6.50587494]
[1773678997566,6.4665504,2284.4,2283.6,6.50587494]
[1773678997868,6.3565004,2284.4,2283.6,6.50587494]
[1773678998065,6.4665304,2284.4,2283.6,6.50587494]
[1773678998261,6.4661804,2284.4,2283.6,6.50587494]
[1773678998768,6.3565004,2284.4,2283.6,6.50587494]
[1773678999465,6.4663704,2284.4,2283.6,6.50587494]
[1773678999665,6.3565004,2284.4,2283.6,6.50587494]
[1773678999970,6.4669704,2284.4,2283.7,6.50055967]
[1773679000167,6.4669704,2284.4,2283.6,0.00531527]
[1773679000673,6.3565004,2284.4,2283.7,6.50055967]
[1773679001273,6.4676704,2284.4,2283.7,6.50055967]
[1773679001474,6.3565004,2284.4,2283.7,6.50055967]
[1773679002075,6.4675304,2284.4,2283.7,6.50055967]
[1773679002471,6.4675304,2284.4,2283.6,0.00531527]
[1773679002874,6.4675304,2284.4,2283.6,6.50587494]
[1773679003872,6.4675304,2284.4,2282.7,1.8790953]
[1773679003873,6.35114381,2284.0,2282.8,6.50055967]
[1773679004071,6.35114381,2283.6,2282.6,6.50055967]
[1773679004874,6.46163381,2283.6,2282.6,6.50372456]
[1773679005277,6.35114381,2283.6,2282.6,6.50372456]
[1773679005475,6.35114381,2284.2,2282.6,6.72275456]
[1773679006775,6.35114381,2284.2,2283.0,6.50055967]
[1773679006979,6.3565004,2284.4,2283.2,6.50055967]
[1773679008478,6.3565004,2284.4,2283.4,6.50055967]
[1773679009284,6.3565004,2284.4,2283.5,6.50055967]
[1773679014276,6.3565004,2284.4,2283.7,6.57534023]
[1773679015680,6.12872807,2284.3,2282.9,6.06542638]
[1773679015876,6.23874807,2283.9,2282.7,6.06542638]
[1773679016076,6.12872807,2283.9,2282.7,6.06542638]
[1773679016281,6.12872807,2283.9,2282.9,6.06542638]
[1773679016481,6.12872807,2284.3,2283.1,6.06542638]
[1773679016682,6.24240807,2284.3,2283.1,6.06542638]
[1773679016877,6.12872807,2284.1,2283.2,6.06542638]
[1773679017492,6.23942807,2284.1,2283.2,6.06542638]
[1773679017790,6.23935807,2283.5,2282.6,0.00316489]
[1773679018085,6.24348807,2283.3,2282.6,0.00316489]
[1773679018279,6.12872807,2283.3,2282.6,6.06859127]
[1773679018482,6.23969807,2283.3,2282.6,6.06859127]
[1773679018689,6.12872807,2283.3,2282.6,6.06859127]
[1773679018891,6.23952807,2283.3,2282.6,6.06859127]
[1773679019688,6.12872807,2283.5,2282.6,6.06859127]
[1773679019883,6.12872807,2283.7,2282.6,6.06859127]
[1773679020680,6.24163807,2283.7,2282.6,6.06859127]
[1773679020885,6.24238807,2283.5,2282.6,0.00316489]
[1773679021288,6.23910807,2283.5,2282.6,6.06859127]
[1773679022296,6.12872807,2283.3,2282.3,6.06542638]
[1773679022782,6.24202807,2283.3,2282.3,6.06542638]
[1773679023092,6.24202807,2283.3,2282.0,6.06542638]
[1773679023389,6.24202807,2283.3,2282.0,6.07081739]
[1773679023988,6.12872807,2283.3,2282.0,6.07081739]
[1773679024187,6.23913807,2283.3,2282.0,6.07081739]
[1773679025986,6.52247733,2283.3,2282.0,6.07081739]
[1773679026191,6.23913807,2283.3,2282.0,6.07081739]
[1773679026388,6.23945807,2283.3,2282.0,6.07081739]
[1773679026986,6.23894807,2283.3,2282.0,6.07081739]
[1773679027194,6.3484101,2283.3,2282.0,6.07081739]
[1773679027593,6.4614001,2283.3,2282.0,6.07081739]
[1773679029396,6.73968031,2283.3,2282.0,6.07081739]
[1773679030199,6.74076031,2283.3,2282.0,6.07081739]
[1773679030797,6.12872807,2283.1,2282.0,6.07081739]
[1773679030994,6.12872807,2282.7,2281.8,6.06542638]
[1773679031193,0.21907,2282.2,2281.0,6.06542638]
[1773679031497,6.24255807,2282.1,2281.0,6.06542638]
[1773679031998,6.13239978,2282.1,2281.0,6.07021261]
[1773679032192,6.24266978,2282.1,2281.0,6.07021261]
[1773679033597,6.13239978,2282.1,2281.0,6.07021261]
[1773679033896,6.24357978,2282.1,2281.0,6.07021261]
[1773679034097,6.13239978,2282.1,2281.0,6.07021261]
[1773679038499,6.13239978,2282.1,2281.2,6.06542638]
[1773679041296,6.13239978,2282.1,2281.0,6.07021261]
[1773679042398,6.13239978,2282.1,2281.0,0.00478623]
[1773679042594,6.13239978,2282.1,2280.6,6.20220218]
[1773679042595,6.04470355,2281.9,2280.6,6.20220218]
[1773679042799,6.04470355,2281.9,2280.0,0.21928]
[1773679042800,6.04470355,2281.5,2280.4,6.20220218]
[1773679043699,6.04470355,2281.5,2280.4,6.2064956]
[1773679047305,6.04470355,2281.5,2280.4,6.4257356]
[1773679051302,6.04470355,2282.0,2280.9,6.20220218]
[1773679051496,6.04470355,2282.0,2281.1,6.20220218]
[1773679051901,0.00367171,2282.1,2281.3,6.20220218]
[1773679053706,6.04470355,2282.6,2281.5,6.20220218]
[1773679054609,6.04877617,2282.6,2281.5,6.20220218]
[1773679056309,6.04877617,2282.6,2281.7,6.20220218]
[1773679057206,6.04470355,2283.0,2281.9,6.20220218]
[1773679057407,6.04470355,2283.0,2281.6,1.8790953]
[1773679057408,6.04470355,2283.0,2282.1,6.20220218]
[1773679058209,6.04941834,2283.0,2282.1,6.20559195]
[1773679062214,0.00471479,2283.0,2282.1,6.20559195]
[1773679062413,6.04470355,2283.4,2282.3,6.20220218]
[1773679063419,6.0489981,2283.4,2282.3,6.20220218]
[1773679064015,0.00429455,2283.4,2282.5,6.20220218]
[1773679064218,6.26893959,2284.2,2282.7,6.20220218]
[1773679064720,6.04470355,2284.2,2282.9,6.20220218]
[1773679065120,6.04827489,2284.2,2282.9,6.20220218]
[1773679066019,6.32381345,2284.2,2282.9,6.20220218]
[1773679066623,6.04827489,2284.2,2282.9,6.20220218]
[1773679073927,6.48471429,2284.0,2282.7,5.92909306]
[1773679074127,0.21891,2283.9,2282.5,5.92909306]
[1773679074427,6.51339746,2283.8,2282.5,5.92909306]
[1773679079633,6.51339746,2283.6,2282.5,5.92909306]
[1773679082431,6.51339746,2284.0,2282.7,6.42559785]
[1773679082632,6.51339746,2284.0,2282.9,6.42559785]
[1773679086631,6.5169688,2284.2,2283.1,6.42559785]
[1773679088339,6.5169688,2284.2,2283.3,6.42559785]
[1773679088844,0.00357134,2284.2,2283.3,6.42559785]
[1773679089636,6.51339746,2284.6,2283.5,6.42559785]
[1773679089836,6.51339746,2284.6,2283.7,6.42559785]
[1773679090041,6.51339746,2285.2,2283.7,6.42559785]
[1773679090241,6.51339746,2285.0,2283.7,6.42559785]
[1773679090436,6.51339746,2284.8,2283.7,6.42559785]
[1773679090639,6.51845917,2284.8,2283.7,6.43024875]
[1773679090938,6.51845917,2284.8,2283.9,6.42559785]
[1773679091146,0.00506171,2284.8,2283.9,6.42559785]
[1773679092544,6.51339746,2284.7,2283.7,6.43024875]
[1773679092738,6.51845917,2284.8,2283.7,6.43024875]
[1773679094145,6.51845917,2284.8,2283.9,6.42559785]
[1773679094338,0.00506171,2284.8,2283.9,6.42559785]
[1773679094538,6.51339746,2285.6,2284.3,6.42559785]
[1773679095546,6.51854919,2285.6,2284.3,6.42559785]
[1773679095745,6.51854919,2285.6,2283.7,7.0396509]
[1773679095746,6.51339746,2285.1,2283.8,6.42559785]
[1773679095948,6.51339746,2284.9,2283.7,0.0046509]
[1773679096343,6.51339746,2284.1,2283.0,6.42559785]
[1773679096743,6.63714746,2284.1,2283.0,6.42559785]
[1773679097443,6.63714746,2284.1,2283.0,6.43123511]
[1773679097644,8.75235,2285.0,2283.0,6.43123511]
[1773679097645,6.51339746,2283.9,2283.0,6.43123511]
[1773679097943,0.11482523,2283.9,2283.0,6.43123511]
[1773679098149,0.00512523,2283.9,2283.0,6.43123511]
[1773679100042,6.51852269,2283.9,2283.0,6.43123511]
[1773679100241,6.51852269,2283.9,2283.2,6.42559785]
[1773679101251,6.51852269,2283.9,2283.0,6.43123511]
[1773679102542,0.00512523,2283.9,2283.0,6.43123511]
[1773679103048,6.15169012,2283.9,2283.2,6.18706142]
[1773679105253,6.26134012,2283.9,2283.2,6.18706142]
[1773679105446,6.15169012,2283.9,2283.0,13.38496456]
[1773679105952,6.15169012,2283.9,2283.1,6.3513273]
[1773679106147,6.26195012,2283.9,2283.1,6.3513273]
[1773679108646,6.15169012,2283.9,2283.1,6.3513273]
[1773679109051,6.26254012,2283.9,2283.1,6.3513273]
[1773679109657,6.26176012,2283.9,2283.0,7.03363726]
[1773679110054,6.31526111,2283.5,2282.9,6.3513273]
[1773679110251,6.31526111,2283.5,2282.7,7.032]
[1773679110651,6.42929111,2283.5,2282.7,13.3833273]
[1773679111152,6.42929111,2283.5,2282.7,13.38768076]
[1773679111653,6.42929111,2283.5,2282.7,7.03635346]
[1773679111852,6.42929111,2283.5,2282.7,13.38768076]
[1773679112045,6.42929111,2283.5,2281.6,25.40859867]
[1773679112046,6.53421111,2283.5,2282.3,13.3853273]
[1773679112246,6.53421111,2283.5,2282.4,6.3513273]
[1773679112648,6.31526111,2283.5,2282.4,6.3513273]
[1773679113049,6.42769111,2283.5,2282.4,6.35639963]
[1773679113458,6.31526111,2283.5,2282.4,6.35639963]
[1773679114253,6.31526111,2283.5,2282.4,6.57544963]
[1773679114461,6.31526111,2283.8,2282.6,6.5703573]
[1773679115259,6.31526111,2283.8,2282.7,7.038]
[1773679115460,6.31526111,2283.8,2282.8,6.3513273]
[1773679118970,6.31526111,2283.8,2282.9,13.26920776]
[1773679119370,6.31526111,2283.8,2283.0,6.22820776]
[1773679120467,6.02672952,2283.6,2282.5,6.42824949]
[1773679120666,6.02672952,2283.6,2282.6,6.42824949]
[1773679121967,6.13704952,2283.6,2282.6,6.42824949]
[1773679122466,6.02672952,2283.6,2282.6,6.42824949]
[1773679122671,6.13627952,2283.6,2282.6,6.42824949]
[1773679123571,6.02672952,2283.6,2282.6,6.42824949]
[1773679123969,6.14216475,2283.9,2282.6,6.42824949]
[1773679124169,6.03185475,2283.9,2282.6,6.42824949]
[1773679125573,0.00512523,2283.9,2282.8,6.42824949]
[1773679126677,0.00512523,2283.9,2283.3,6.42824949]
[1773679127475,6.03185475,2283.9,2283.3,6.42824949]
[1773679132480,5.47858132,2285.0,2283.2,7.26697]
[1773679132481,6.38190901,2284.6,2283.5,6.34433857]
[1773679132675,6.38190901,2284.6,2283.7,6.34433857]
[1773679132875,6.38190901,2284.6,2283.9,6.34433857]
[1773679133077,6.38190901,2284.6,2283.9,13.40533857]
[1773679133276,6.38531024,2284.6,2283.6,6.34433857]
[1773679138582,0.00340123,2284.6,2283.7,0.21893]
[1773679138783,0.00340123,2284.6,2283.8,6.55006054]
[1773679138981,0.00340123,2284.6,2284.0,6.55006054]
[1773679139177,0.00340123,2284.6,2284.0,6.55450705]
[1773679139381,6.08993504,2284.8,2284.0,6.55450705]
[1773679140286,6.08993504,2284.8,2284.1,6.55006054]
[1773679140486,6.09430319,2284.8,2284.1,6.55006054]
[1773679140687,6.09430319,2284.8,2284.0,7.08244651]
[1773679140986,6.09430319,2284.8,2284.0,0.00444651]
[1773679141579,6.09430319,2284.8,2283.7,13.63006054]
[1773679141785,6.08993504,2284.6,2283.5,13.63106054]
[1773679142183,6.08993504,2284.6,2283.4,6.55006054]
[1773679142384,6.08993504,2284.4,2283.4,6.55006054]
[1773679142583,6.19964504,2284.4,2283.4,6.55320598]
[1773679142883,6.20033504,2284.4,2283.4,6.55320598]
[1773679143285,6.08993504,2284.4,2283.4,6.55320598]
[1773679143589,6.19991504,2284.4,2283.4,6.55320598]
[1773679144289,6.08993504,2284.4,2283.4,6.55320598]
[1773679144482,6.20045504,2284.4,2283.4,6.55320598]
[1773679144679,6.20044504,2284.4,2283.4,6.55320598]
[1773679145188,6.08993504,2284.4,2283.4,6.55320598]
[1773679147983,6.19944504,2284.4,2283.4,6.55320598]
[1773679148292,6.19973504,2284.4,2283.4,6.55320598]
[1773679148594,6.19942504,2284.4,2283.4,6.55320598]
[1773679149290,6.20150504,2284.4,2283.4,6.55320598]
[1773679153194,6.08993504,2284.4,2283.4,6.55320598]
[1773679153598,6.20030504,2284.4,2283.6,6.55006054]
[1773679154390,6.19990504,2284.4,2283.6,6.55006054]
[1773679154591,6.08993504,2284.4,2283.6,6.55006054]
[1773679156190,6.08993504,2284.4,2283.4,13.65620598]
[1773679156586,6.19959504,2284.4,2283.4,13.65620598]
[1773679156991,6.08993504,2284.2,2283.4,0.00314544]
[1773679157192,5.21403352,2284.3,2282.8,6.55006054]
[1773679157193,6.08993504,2283.6,2282.8,6.55006054]
[1773679157592,6.20098504,2283.6,2282.8,6.55006054]
[1773679158193,6.20209504,2283.6,2282.8,6.55388437]
[1773679158395,6.08993504,2283.6,2282.8,6.55388437]
[1773679158895,6.20021504,2283.6,2282.8,6.55388437]
[1773679159698,6.20021504,2283.6,2282.8,0.00382383]
[1773679160901,6.20021504,2283.6,2282.8,6.55388437]
[1773679163603,6.08993504,2283.6,2282.8,6.55388437]
[1773679163792,6.20110504,2283.6,2282.8,6.55388437]
[1773679163995,6.08993504,2283.6,2282.6,6.49829994]
[1773679164394,6.20289504,2283.6,2282.6,6.49829994]
[1773679165000,6.20289504,2283.6,2282.6,6.50225549]
[1773679166597,6.08993504,2283.6,2282.6,6.50225549]
[1773679168198,6.20015504,2283.6,2282.6,6.50225549]
[1773679168503,6.08993504,2283.6,2282.6,6.50225549]
[1773679169603,3.87592934,2284.2,2282.6,6.72128549]
[1773679169799,6.47227283,2284.0,2282.6,6.72128549]
[1773679170202,6.47227283,2283.8,2282.6,6.50225549]
[1773679172602,6.47227283,2284.1,2283.0,6.49829994]
[1773679172804,6.47227283,2284.1,2283.2,6.49829994]
[1773679173003,6.47227283,2284.6,2283.2,6.49829994]
[1773679173198,6.47227283,2284.4,2283.2,6.49829994]
[1773679174108,6.47227283,2284.4,2283.4,6.49829994]
[1773679179312,0.22129568,2284.6,2283.2,6.49829994]
[1773679179313,6.47227283,2284.2,2283.2,6.49829994]
[1773679181309,6.58198283,2284.2,2283.2,6.49829994]
[1773679182013,6.47227283,2284.2,2283.2,6.49829994]
[1773679182608,6.58255283,2284.2,2283.2,6.49829994]
[1773679183109,6.47227283,2284.2,2283.2,6.49829994]
[1773679184412,6.47227283,2284.5,2283.2,6.49829994]
[1773679184713,6.47227283,2284.3,2283.2,6.49829994]
[1773679185109,6.47227283,2284.5,2283.4,6.49829994]
[1773679185309,5.2506205,2284.4,2283.4,6.49829994]
[1773679185514,6.47227283,2284.5,2283.4,6.49829994]
[1773679185915,5.25114597,2284.4,2283.4,6.49829994]
[1773679186212,6.47227283,2284.3,2283.4,6.49829994]
[1773679193324,6.37588915,2284.6,2283.4,6.49829994]
[1773679193922,0.00436815,2284.8,2284.0,6.41684094]
[1773679194126,0.00436815,2284.8,2284.1,6.41684094]
[1773679194726,6.22030447,2284.8,2284.1,6.41684094]
[1773679198023,0.00436815,2284.8,2284.1,6.41684094]
[1773679200328,6.22030447,2284.8,2284.1,6.41684094]
[1773679203128,6.21593632,2285.9,2284.7,6.03902366]
[1773679203432,6.21593632,2285.9,2284.8,6.03902366]
[1773679204027,6.2204007,2285.9,2284.8,6.0425478]
[1773679205530,6.21593632,2286.7,2285.0,6.03902366]
[1773679205731,6.50223275,2286.7,2285.0,6.03902366]
[1773679206531,6.50629353,2286.7,2285.2,6.03902366]
[1773679206726,6.50629353,2286.7,2285.4,6.03902366]
[1773679207738,6.21593632,2286.5,2285.4,6.03902366]
[1773679208633,6.21593632,2286.3,2285.4,6.03902366]
[1773679209838,6.21593632,2286.5,2285.4,6.03902366]
[1773679210038,12.40016934,2287.4,2285.0,0.2188]
[1773679210039,6.21593632,2287.4,2285.9,6.03902366]
[1773679210239,6.21593632,2287.4,2286.1,6.03902366]
[1773679210441,6.32862632,2287.2,2286.1,6.03902366]
[1773679210639,6.32802632,2287.2,2286.1,6.03902366]
[1773679211040,6.332528,2287.2,2286.1,6.03902366]
[1773679211442,6.21593632,2287.0,2286.1,6.03902366]
[1773679211743,0.2186,2287.1,2284.9,6.03902366]
[1773679211744,6.21593632,2286.6,2284.9,6.03902366]
[1773679211944,6.21593632,2286.4,2284.9,6.03902366]
[1773679212144,6.34353632,2286.4,2284.9,6.03902366]
[1773679213042,6.21593632,2286.2,2284.9,6.03902366]
[1773679213343,6.34054632,2286.0,2284.9,6.03902366]
[1773679213638,6.33183632,2286.6,2284.9,6.03902366]
[1773679214239,6.33910632,2286.2,2284.9,6.03902366]
[1773679215342,6.21593632,2286.2,2284.9,6.03902366]
[1773679215735,6.33065632,2286.2,2284.9,6.03902366]
[1773679217146,6.21516694,2286.0,2284.9,6.03902366]
[1773679217345,6.33607694,2286.0,2284.9,6.03902366]
[1773679217541,6.33642694,2285.8,2284.9,6.03902366]
[1773679219544,6.21516694,2285.6,2284.9,5.92611366]
[1773679219741,6.21516694,2285.6,2284.9,5.31521833]
[1773679219742,6.21907333,2285.6,2284.9,5.31521833]
[1773679220146,6.33747333,2285.6,2284.9,5.31521833]
[1773679222342,6.21907333,2285.6,2284.9,5.31521833]
[1773679222745,6.32895333,2285.6,2284.9,5.31521833]
[1773679224446,6.32989333,2285.6,2284.9,5.31521833]
[1773679225447,6.32989333,2285.6,2284.8,0.00352414]
[1773679225751,6.04434512,2285.3,2284.7,6.02754246]
[1773679226152,6.16114512,2285.3,2284.7,6.02754246]
[1773679226354,6.04434512,2285.5,2284.7,6.02754246]
[1773679226552,6.15387512,2285.5,2284.7,6.03313685]
[1773679226751,0.00390639,2285.6,2284.7,6.03313685]
[1773679227451,6.04825151,2285.6,2284.7,6.03313685]
[1773679228951,6.04434512,2285.4,2284.7,6.03313685]
[1773679229450,6.04825151,2285.6,2284.7,6.03313685]
[1773679231257,6.26700151,2285.6,2284.7,6.03313685]
[1773679231758,6.37646151,2285.6,2284.7,6.03313685]
[1773679231960,6.37782151,2285.6,2284.7,6.03313685]
[1773679233350,6.26700151,2285.6,2284.7,5.92194685]
[1773679233659,6.04434512,2285.3,2284.1,6.02754246]
[1773679233857,6.16126512,2285.3,2284.1,6.02754246]
[1773679234454,6.16126512,2285.3,2284.1,6.0316262]
[1773679235558,6.16420512,2285.1,2284.1,6.0316262]
[1773679235763,6.04434512,2284.4,2283.9,6.02754246]
[1773679236263,6.16084512,2284.4,2283.9,6.02754246]
[1773679236452,6.26320512,2284.4,2283.3,6.02754246]
[1773679236658,6.26320512,2284.4,2283.3,6.03197004]
[1773679236958,6.37608512,2284.4,2283.3,6.03197004]
[1773679237557,6.65807137,2284.4,2283.3,6.03197004]
[1773679237758,6.65807137,2284.4,2282.1,8.98236]
[1773679237759,6.04434512,2284.1,2282.6,6.02754246]
[1773679238558,6.04434512,2284.1,2282.6,6.24657246]
[1773679238758,6.04434512,2284.1,2282.6,6.25137508]
[1773679240156,6.04434512,2284.3,2283.1,6.02754246]
[1773679240363,6.04434512,2284.6,2283.5,6.02754246]
[1773679240563,6.04434512,2284.6,2283.6,6.02754246]
[1773679243066,6.04434512,2285.2,2283.6,6.02754246]
[1773679243462,6.04434512,2285.0,2283.6,13.21354246]
[1773679243659,6.04434512,2285.0,2283.7,6.02754246]
[1773679244963,6.32226032,2285.0,2283.7,6.02754246]
[1773679245669,6.04434512,2285.0,2283.7,6.02754246]
[1773679245870,6.04434512,2285.0,2283.8,0.21892]
[1773679246068,6.04434512,2285.0,2283.9,6.02754246]
[1773679249274,6.04434512,2285.0,2284.1,6.02754246]
[1773679250476,6.04434512,2285.0,2284.3,6.02754246]
[1773679250668,6.04434512,2285.0,2284.3,6.03294832]
[1773679251668,0.22265639,2285.6,2284.4,0.21886]
[1773679251669,6.04434512,2285.5,2284.4,0.21886]
[1773679251873,6.04434512,2285.5,2284.5,6.02754246]
[1773679252670,0.00390639,2285.6,2284.7,6.20088309]
[1773679252877,0.00390639,2285.6,2284.8,6.20088309]
[1773679254382,6.30108796,2285.6,2284.6,6.38073943]
[1773679255273,6.29718157,2285.4,2284.6,6.38073943]
[1773679257685,0.00390639,2285.6,2284.6,6.59957943]
[1773679257975,6.30108796,2285.6,2284.6,6.38073943]
[1773679259886,6.29718157,2285.9,2284.8,6.38073943]
[1773679260077,6.29718157,2286.4,2285.0,6.38073943]
[1773679260278,6.29718157,2286.4,2285.2,6.38073943]
[1773679260983,6.30174405,2286.4,2285.4,6.38073943]
[1773679261283,6.30174405,2286.4,2285.6,6.38073943]
[1773679262484,6.30174405,2286.4,2285.7,6.42833163]
[1773679264386,6.23615975,2286.7,2285.7,6.42833163]
[1773679265487,6.23979352,2286.7,2285.7,6.42833163]
[1773679266785,0.00363377,2286.7,2285.7,6.64706163]
[1773679266984,6.23615975,2287.0,2285.7,6.64706163]
[1773679267887,6.2408693,2287.0,2285.7,6.64706163]
[1773679269886,6.2408693,2287.0,2285.9,6.04638461]
[1773679270891,6.2408693,2287.0,2286.0,7.194]
[1773679271093,6.2408693,2287.0,2286.1,6.04638461]
[1773679271292,6.2408693,2287.0,2286.1,13.24038461]
[1773679271494,6.2408693,2287.0,2286.2,6.04638461]
[1773679272493,6.2408693,2287.0,2286.0,6.05086917]
[1773679273593,3.65704934,2287.9,2286.2,6.04638461]
[1773679273890,5.83509799,2287.8,2286.8,6.04638461]
[1773679274088,3.63308353,2288.3,2286.5,8.74628]
[1773679274089,5.83509799,2288.3,2287.0,6.04638461]
[1773679274286,5.83509799,2288.3,2287.2,6.04638461]
[1773679274487,5.83509799,2288.3,2287.4,5.93236943]
[1773679274797,5.83886397,2288.3,2287.5,5.93236943]
[1773679274994,5.83886397,2288.3,2287.3,5.93236943]
[1773679276797,5.911731,2288.1,2287.1,5.93236943]
[1773679277200,5.91549698,2288.3,2287.1,5.93236943]
[1773679278797,6.30919125,2288.8,2287.3,6.45299566]
[1773679278996,7.654,2290.1,2287.3,6.45299566]
[1773679278997,0.27855525,2290.1,2289.1,6.45299566]
[1773679279190,6.53104446,2290.7,2289.3,6.45299566]
[1773679279393,6.53104446,2290.7,2289.5,6.45299566]
[1773679279795,6.53458156,2290.7,2289.5,6.45299566]
[1773679280097,0.0035371,2290.7,2289.5,6.67506446]
[1773679280296,6.30919125,2291.4,2289.5,6.67506446]
[1773679280297,6.30919125,2291.4,2289.9,6.45299566]
[1773679280493,8.72512,2292.2,2289.6,4.84255054]
[1773679280494,6.30919125,2292.1,2290.3,6.45299566]
[1773679280798,6.31902669,2292.4,2290.7,6.45299566]
[1773679281204,6.32387409,2292.4,2290.9,6.45299566]
[1773679281500,6.30919125,2292.1,2290.9,6.45299566]